bitfinex/quotes_ETHUSD_20250115
["timestamp","ask_amount","ask_price","bid_price","bid_amount"]
[1736948119251,4.59684,3267.5,3267.4,0.167898]
[1736948119423,1.5364,3267.5,3265.1,0.03061163]
[1736948119749,1.5364,3267.5,3266.0,3.06184]
[1736948119919,1.5364,3267.5,3266.1,0.306184]
[1736948120247,1.5364,3267.5,3265.6,0.03061676]
[1736948120426,3.06085,3267.1,3265.3,3.06249]
[1736948120623,1.5364,3267.0,3264.6,6.41861552]
[1736948120828,1.5364,3267.0,3265.6,3.06222]
[1736948121022,1.5364,3267.0,3265.7,0.306222]
[1736948121252,1.5364,3267.0,3266.0,3.06178]
[1736948121422,1.5364,3267.0,3265.7,3.15656612]
[1736948121623,1.5364,3267.0,3265.7,0.0638772]
[1736948121823,1.5364,3265.8,3265.7,0.0638772]
[1736948122133,1.5364,3265.8,3263.4,1.6298]
[1736948122335,0.55,3266.3,3264.0,6.66861552]
[1736948122536,1.5364,3266.7,3265.0,3.06275]
[1736948122719,4.59764,3266.7,3265.1,0.306275]
[1736948122924,3.06152,3266.4,3264.0,1.6298]
[1736948123122,1.5364,3266.7,3264.1,0.03063009]
[1736948123324,1.5364,3266.7,3265.6,3.06219]
[1736948123534,1.5364,3266.7,3264.2,1.6298]
[1736948123720,4.5732,3266.5,3264.3,3.06341]
[1736948123920,1.5732,3266.5,3264.0,0.03063495]
[1736948124125,1.5732,3265.9,3263.3,1.54923102]
[1736948124321,1.5732,3265.9,3263.3,1.5186]
[1736948124636,1.5732,3265.9,3264.6,3.06307]
[1736948124844,1.73052,3265.9,3263.7,0.03063058]
[1736948125058,1.73052,3265.9,3262.8,0.03063764]
[1736948125059,0.15142314,3265.3,3262.8,0.03063764]
[1736948125219,1.5732,3264.8,3263.0,3.06461]
[1736948125552,1.5732,3264.8,3262.0,0.1924056]
[1736948125553,6.41861552,3264.4,3262.0,0.1924056]
[1736948125760,1.5732,3263.7,3262.0,0.1924056]
[1736948125911,1.5732,3263.5,3262.0,0.1924056]
[1736948126114,3.06545,3262.2,3260.6,0.03065411]
[1736948126379,1.063,3261.8,3260.5,0.03065808]
[1736948126574,1.063,3261.8,3259.5,6.4307773]
[1736948126713,1.063,3262.7,3260.7,3.06682]
[1736948126917,0.25,3262.1,3261.9,3.06565]
[1736948127218,3.06396,3263.8,3261.7,1.5186]
[1736948127421,1.5732,3264.0,3262.6,3.06501]
[1736948127716,1.5732,3264.0,3262.7,0.306501]
[1736948128024,1.5732,3264.0,3261.2,0.03065587]
[1736948128254,1.5732,3264.0,3261.7,6.73341363]
[1736948128468,1.5732,3264.0,3263.4,3.06419]
[1736948128617,1.5732,3264.7,3263.9,3.06379]
[1736948128815,1.5732,3265.5,3263.9,0.306379]
[1736948129079,1.5732,3265.5,3262.9,0.14984374]
[1736948129080,0.01597255,3265.6,3264.4,3.0]
[1736948129288,0.01597255,3265.6,3265.4,3.06239]
[1736948129555,0.25,3268.2,3265.6,0.25]
[1736948129757,1.227044,3267.9,3266.7,0.25]
[1736948129931,0.25,3269.0,3267.5,0.48009957]
[1736948130132,1.226656,3268.9,3267.5,3.48009957]
[1736948130330,1.226656,3268.9,3267.5,0.48009957]
[1736948130540,1.5732,3269.7,3267.7,3.06021]
[1736948130896,1.5732,3269.7,3267.5,0.48009957]
[1736948131056,2.799685,3269.7,3267.5,0.48009957]
[1736948131259,0.25,3269.5,3268.2,3.0597]
[1736948131461,0.25,3269.6,3268.2,2.9825]
[1736948131646,1.5732,3269.7,3268.2,2.9825]
[1736948132037,1.5732,3269.7,3268.2,6.75913408]
[1736948132287,1.5732,3270.7,3268.3,1.5186]
[1736948132446,1.5732,3270.7,3269.4,3.05863]
[1736948132628,1.5732,3270.7,3268.8,6.46088408]
[1736948132980,1.5732,3270.7,3270.2,3.05787]
[1736948133131,2.799096,3271.4,3269.5,3.05857]
[1736948133326,2.799096,3271.4,3270.0,6.46088408]
[1736948133531,2.799096,3271.4,3271.2,3.05691]
[1736948133532,1.225896,3271.4,3271.2,3.05691]
[1736948133828,1.5732,3272.3,3270.9,3.05717]
[1736948134023,1.5732,3272.3,3271.8,3.0564]
[1736948134262,1.6444,3273.2,3272.2,3.05603]
[1736948134431,0.18368056,3273.1,3270.8,0.55]
[1736948134626,0.18368056,3273.1,3271.3,3.05682]
[1736948134875,0.25,3273.0,3270.5,0.28056594]
[1736948135022,0.25,3272.6,3269.6,0.25]
[1736948135227,1.8944,3272.5,3269.7,0.03057372]
[1736948135539,1.80117199,3272.3,3269.3,1.5962]
[1736948135853,1.6444,3272.3,3269.5,3.0]
[1736948136025,1.6444,3272.3,3270.5,3.05758]
[1736948136362,1.6444,3272.3,3270.0,0.03057874]
[1736948136561,1.6444,3272.3,3271.7,3.05646]
[1736948136761,1.6444,3272.3,3270.4,9.51855408]
[1736948136762,1.6444,3272.3,3271.0,6.46088408]
[1736948136961,1.6444,3272.3,3272.1,3.05613]
[1736948137149,1.6444,3272.3,3272.0,3.05617]
[1736948137350,1.6444,3272.3,3272.1,3.05606]
[1736948137551,1.82808056,3273.1,3271.9,3.05629]
[1736948137724,1.82808056,3273.1,3270.8,3.05733]
[1736948138062,1.82808056,3273.1,3268.3,2.0]
[1736948138063,0.25,3272.8,3270.3,3.05782]
[1736948138226,6.64369214,3273.0,3269.4,1.74559695]
[1736948138227,1.6444,3272.1,3269.4,1.74559695]
[1736948138429,1.6444,3272.1,3270.7,3.05737]
[1736948138629,1.6444,3272.1,3270.0,0.03057745]
[1736948138849,0.25,3272.0,3269.3,3.05872]
[1736948139096,6.46088408,3271.6,3268.9,0.15645279]
[1736948139297,6.46088408,3271.6,3269.1,3.05894]
[1736948139515,1.6444,3271.8,3269.1,0.03058576]
[1736948139813,1.6444,3271.8,3270.0,0.55]
[1736948140013,1.6444,3271.8,3269.6,6.46088408]
[1736948140014,1.6444,3271.8,3270.1,0.69138626]
[1736948140219,1.6444,3271.8,3268.2,2.29825]
[1736948140220,6.46088408,3271.6,3268.6,0.15163155]
[1736948140499,1.6444,3270.7,3267.8,0.15642217]
[1736948140709,1.6444,3270.7,3268.4,3.05953]
[1736948140909,1.6444,3270.7,3268.5,0.03058885]
[1736948141091,1.6444,3270.7,3269.9,3.05817]
[1736948141250,3.05777,3270.4,3268.6,3.05932]
[1736948141450,0.16444,3270.6,3268.0,0.03058946]
[1736948141909,3.0,3269.8,3267.3,3.06063]
[1736948142049,3.0,3269.8,3266.8,0.25]
[1736948142050,1.6444,3268.9,3266.8,3.06109]
[1736948142253,4.6444,3268.9,3266.4,3.06143]
[1736948142512,3.05943,3268.6,3266.9,3.06098]
[1736948142832,3.05943,3268.6,3265.7,1.7476938]
[1736948142833,1.6444,3268.7,3265.8,0.28061125]
[1736948143118,1.6444,3268.7,3265.8,0.03061125]
[1736948143326,1.6444,3268.7,3265.8,0.03061115]
[1736948143523,3.05971,3268.3,3265.9,3.06194]
[1736948143835,0.15487632,3268.0,3266.0,0.30925544]
[1736948143969,1.5636,3267.9,3265.7,3.06204]
[1736948144311,3.0,3267.5,3266.0,3.06183]
[1736948144513,1.5636,3266.5,3264.3,1.6555]
[1736948144673,0.462491,3266.4,3263.6,1.6555]
[1736948145004,4.62505,3266.5,3263.6,1.6555]
[1736948145005,1.5636,3266.5,3263.8,3.06391]
[1736948145206,1.5636,3266.5,3264.2,3.06344]
[1736948145520,1.5636,3266.5,3266.3,3.06153]
[1736948145672,1.51853624,3269.9,3264.8,0.03061599]
[1736948145673,0.1514785,3268.0,3264.8,0.03061599]
[1736948145867,1.5636,3267.2,3264.7,0.5]
[1736948146244,1.5636,3267.2,3264.9,3.31288]
[1736948146374,1.5636,3267.2,3266.7,3.06116]
[1736948146690,1.5636,3267.2,3265.0,0.35934971]
[1736948146893,3.20999159,3268.1,3262.8,3.227336]
[1736948146894,6.46088408,3266.3,3263.4,1.6555]
[1736948147078,1.5636,3266.4,3265.4,3.06236]
[1736948147483,1.5636,3266.4,3264.5,3.06325]
[1736948147808,3.06177,3266.1,3265.0,0.00618054]
[1736948147982,3.06195,3265.9,3265.0,0.00618054]
[1736948148185,5.18248529,3266.3,3265.0,0.00618054]
[1736948148374,1.5636,3266.4,3265.0,0.00618054]
[1736948148570,1.5636,3266.4,3265.3,0.55]
[1736948148775,1.5636,3267.7,3265.7,0.55]
[1736948148977,1.5636,3267.7,3265.9,3.06194]
[1736948149208,1.5636,3267.7,3265.4,0.25]
[1736948149209,1.5636,3267.7,3267.4,3.06049]
[1736948149411,1.5636,3267.7,3266.7,0.55]
[1736948149610,0.32024924,3271.9,3265.8,3.06198]
[1736948149611,1.5636,3268.1,3266.8,0.361123]
[1736948149797,1.5636,3268.1,3267.6,3.06033]
[1736948150012,1.5636,3268.1,3265.1,4.71817]
[1736948150188,1.5636,3268.1,3266.0,3.06184]
[1736948150392,1.5636,3268.1,3266.4,6.12294]
[1736948150655,1.5858,3268.8,3268.5,3.05947]
[1736948150809,1.5858,3268.8,3268.6,3.05935]
[1736948150983,1.5858,3268.8,3266.6,3.06128]
[1736948151188,1.5858,3268.8,3266.7,0.03060294]
[1736948151520,1.5858,3268.8,3266.5,0.766004]
[1736948151681,1.5858,3268.8,3266.7,0.25]
[1736948151879,1.5858,3269.6,3269.1,3.05889]
[1736948152112,1.5858,3269.6,3269.1,3.05888]
[1736948152287,1.5858,3269.6,3268.3,3.09028206]
[1736948152493,1.74438,3269.6,3266.9,1.5371]
[1736948152814,1.74438,3269.6,3267.1,3.06081]
[1736948153040,3.05871,3269.4,3267.2,0.03060188]
[1736948153184,3.0,3269.5,3266.5,0.766004]
[1736948153512,3.0,3269.5,3266.2,1.5371]
[1736948153513,6.46088408,3268.4,3265.5,1.5371]
[1736948153776,4.6453,3268.5,3267.1,3.06074]
[1736948153892,4.64536,3268.5,3267.0,3.0609]
[1736948154101,4.64536,3268.5,3266.6,0.00430684]
[1736948154102,0.464536,3268.4,3266.6,0.03491523]
[1736948154395,1.5858,3268.5,3266.7,3.06119]
[1736948154720,1.5858,3268.5,3267.3,3.06055]
[1736948154922,1.5858,3268.5,3267.1,3.0608]
[1736948155094,1.5858,3268.5,3268.0,3.05997]
[1736948155290,1.5858,3268.5,3267.0,3.06084]
[1736948155615,1.5858,3268.5,3267.9,3.06004]
[1736948155916,1.5858,3268.5,3267.7,3.06023]
[1736948156117,1.5858,3268.5,3267.1,0.0306028]
[1736948156305,1.5858,3269.5,3267.4,3.0]
[1736948156507,1.5858,3269.5,3268.9,3.05909]
[1736948156711,1.5858,3269.5,3268.3,3.05969]
[1736948157019,1.5858,3269.5,3269.4,3.05866]
[1736948157222,1.5858,3270.8,3268.6,3.05941]
[1736948157585,1.5858,3270.8,3268.7,0.03058537]
[1736948157904,1.5858,3270.8,3270.1,3.05798]
[1736948158082,1.5858,3270.8,3268.9,0.03058131]
[1736948158282,1.5858,3270.8,3269.2,3.05876]
[1736948158526,1.5858,3270.8,3269.9,3.05816]
[1736948158815,1.5858,3270.8,3269.5,0.03058144]
[1736948159016,1.5858,3270.8,3269.3,0.305876]
[1736948159017,1.5858,3270.8,3269.7,3.05835]
[1736948159387,1.5858,3270.8,3269.8,0.03058056]
[1736948159581,1.5858,3270.8,3270.1,3.05797]
[1736948159954,1.5858,3270.8,3268.6,1.5371]
[1736948160223,1.5858,3270.8,3268.9,7.01088408]
[1736948160382,1.5858,3270.8,3270.2,3.05782]
[1736948160586,1.5858,3270.8,3270.5,3.05756]
[1736948160782,1.5858,3272.1,3270.0,3.6081]
[1736948161081,1.5858,3272.1,3270.5,0.55]
[1736948161400,1.5858,3272.1,3270.0,1.5371]
[1736948161401,1.5858,3272.1,3270.8,0.55]
[1736948161588,1.5858,3272.1,3270.9,0.39130975]
[1736948161791,1.5858,3272.8,3271.0,3.05716]
[1736948162031,1.5858,3272.8,3271.9,3.05631]
[1736948162182,1.5858,3272.8,3272.2,3.056]
[1736948162389,1.5858,3272.8,3272.2,3.05603]
[1736948162618,1.5858,3272.8,3269.0,2.0]
[1736948162619,1.5858,3272.8,3271.1,0.28146068]
[1736948162917,1.5858,3272.8,3271.5,3.05669]
[1736948163125,1.5858,3272.8,3271.1,0.28146068]
[1736948163126,1.5858,3272.8,3271.7,3.05649]
[1736948163318,3.0,3272.7,3271.1,0.28146068]
[1736948163621,3.05587,3272.4,3270.7,3.05743]
[1736948163793,3.0,3272.3,3271.0,3.05711]
[1736948163984,3.05562,3272.7,3270.4,3.05772]
[1736948164209,1.74438,3272.8,3271.4,3.05673]
[1736948164442,1.5858,3272.8,3270.7,0.0305652]
[1736948164657,1.5858,3272.8,3270.8,0.03056376]
[1736948164949,1.5858,3272.8,3271.8,3.05634]
[1736948165243,1.5858,3272.8,3270.8,0.03056376]
[1736948165244,1.5858,3272.8,3272.6,3.05564]
[1736948165396,0.1924056,3273.3,3272.6,3.05565]
[1736948165715,0.1924056,3273.3,3271.6,0.03055715]
[1736948165922,0.1924056,3273.3,3272.8,3.05545]
[1736948166140,0.1924056,3273.3,3273.1,3.05518]
[1736948166287,0.15401484,3273.3,3273.0,3.05521]
[1736948166486,0.15401484,3273.3,3271.8,0.55]
[1736948166487,0.15401484,3273.3,3273.1,3.05515]
[1736948166686,0.15401484,3273.3,3272.6,3.05559]
[1736948166923,4.84e-06,3273.4,3273.2,3.05511]
[1736948167125,4.84e-06,3273.4,3273.2,3.08565905]
[1736948167427,4.84e-06,3273.4,3273.2,3.05511]
[1736948167621,4.84e-06,3273.4,3273.3,0.03054479]
[1736948167819,4.84e-06,3273.4,3273.2,3.05511]
[1736948168223,4.84e-06,3273.4,3273.3,0.58054678]
[1736948168410,1.5825,3275.4,3273.5,3.60483]
[1736948168617,1.5825,3275.4,3273.9,0.55]
[1736948168800,1.5825,3275.4,3274.4,3.05394]
[1736948168999,8.04338408,3275.4,3273.8,3.05454]
[1736948169200,6.46088408,3274.8,3272.9,0.03054391]
[1736948169411,3.0,3274.7,3272.6,1.5074]
[1736948169615,6.46088408,3274.8,3272.7,3.05558]
[1736948169927,3.0,3274.7,3272.8,3.05548]
[1736948170240,6.46088408,3274.2,3272.2,3.05595]
[1736948170392,1.5825,3274.3,3272.2,3.05598]
[1736948170393,6.46088408,3273.6,3272.2,3.05598]
[1736948170592,1.5825,3273.5,3271.4,3.05679]
[1736948170901,1.5825,3273.5,3271.2,1.66414743]
[1736948170902,1.5825,3273.5,3272.2,3.05601]
[1736948171223,8.04338408,3274.1,3272.3,0.33615409]
[1736948171429,8.04338408,3274.1,3272.7,3.05555]
[1736948171627,8.04338408,3274.1,3272.4,3.05586]
[1736948171628,11.09768408,3274.1,3272.8,3.05546]
[1736948171923,11.09768408,3274.1,3271.7,3.05643]
[1736948171924,1.5825,3274.1,3272.9,0.03055277]
[1736948172226,1.5825,3275.2,3273.6,3.05467]
[1736948172539,3.0,3274.6,3272.7,1.5074]
[1736948172728,3.0,3274.6,3272.4,1.223978]
[1736948172896,3.0,3274.6,3273.0,3.0552]
[1736948173087,1.5825,3274.3,3273.1,3.0552]
[1736948173427,1.5825,3274.3,3272.1,1.5074]
[1736948173640,3.0,3274.0,3271.5,3.0567]
[1736948173922,1.5825,3273.3,3272.2,3.05602]
[1736948174130,1.5825,3273.3,3272.8,3.05548]
[1736948174336,3.05399,3274.5,3273.1,3.05516]
[1736948174509,1.5825,3274.1,3273.2,3.05511]
[1736948174693,1.5825,3275.1,3273.4,0.55]
[1736948175027,1.5825,3275.1,3273.3,3.05502]
[1736948175332,1.5825,3275.1,3275.0,3.05343]
[1736948175533,1.5825,3276.3,3274.7,0.030534]
[1736948175823,1.5825,3276.3,3274.7,0.580534]
[1736948176128,1.5825,3276.3,3275.5,3.05293]
[1736948176372,1.5825,3276.3,3275.0,3.05343]
[1736948176573,1.5825,3276.3,3275.4,3.05303]
[1736948176742,1.5825,3276.3,3275.3,3.05313]
[1736948176938,1.5825,3276.3,3274.8,3.05357]
[1736948177154,3.05319,3275.3,3273.4,1.5074]
[1736948177356,3.05306,3275.4,3274.2,3.05409]
[1736948177678,6.46088408,3275.8,3274.4,3.05399]
[1736948177851,6.46088408,3275.8,3273.5,0.03053918]
[1736948177852,6.46088408,3275.8,3273.8,3.08505524]
[1736948178051,3.0,3275.7,3273.7,3.05464]
[1736948178251,3.05334,3275.1,3273.5,3.05474]
[1736948178451,6.46088408,3274.5,3273.8,3.05454]
[1736948178676,1.5825,3274.8,3273.0,0.03054351]
[1736948178840,1.5825,3274.8,3272.5,0.03054403]
[1736948179040,1.5825,3274.8,3273.4,3.05484]
[1736948179244,1.5825,3274.8,3273.5,0.03054571]
[1736948179245,0.15825,3274.7,3273.5,0.03054571]
[1736948179498,0.15825,3274.7,3272.4,0.1530773]
[1736948179799,6.46088408,3274.5,3272.5,0.03054933]
[1736948180004,0.15825,3274.7,3272.5,0.03054933]
[1736948180005,3.21196,3274.7,3273.5,3.05482]
[1736948180212,1.5825,3274.8,3272.7,0.03054552]
[1736948180423,1.5825,3274.8,3274.3,3.05407]
[1736948180581,1.5825,3274.8,3272.9,1.5074]
[1736948180780,1.5825,3274.8,3272.3,1.65782308]
[1736948180982,3.05392,3274.5,3272.8,3.05544]
[1736948181159,4.63613,3274.8,3273.6,3.05472]
[1736948181360,1.5825,3274.8,3273.2,0.03054588]
[1736948181566,1.5825,3274.8,3274.7,3.05371]
[1736948181820,1.5825,3275.6,3274.9,3.05345]
[1736948181977,0.1253362,3275.5,3274.9,3.05344]
[1736948182323,3.05306,3275.4,3273.1,1.5074]
[1736948182533,6.46088408,3275.3,3273.6,3.05465]
[1736948182733,6.46088408,3275.3,3273.1,1.5074]
[1736948182734,3.64608841,3275.2,3273.1,1.5074]
[1736948183010,3.64608841,3275.2,3273.2,0.03054371]
[1736948183215,0.64608841,3275.2,3273.4,0.55]
[1736948183378,3.1783062,3275.5,3274.4,3.05393]
[1736948183561,0.1253362,3275.5,3274.5,0.03053827]
[1736948183761,0.1253362,3275.5,3273.0,3.0]
[1736948184064,0.1253362,3275.5,3274.7,3.05366]
[1736948184404,0.1253362,3275.5,3274.5,0.002683]
[1736948184604,3.22384362,3275.4,3274.5,0.002683]
[1736948184784,0.1253362,3275.5,3274.5,0.002683]
[1736948184967,3.1783162,3275.5,3274.5,0.002683]
[1736948185169,1.5825,3275.1,3274.5,0.002683]
[1736948186261,3.0538,3274.6,3274.5,0.002683]
[1736948186598,1.5825,3275.1,3274.5,0.002683]
[1736948186775,9.51468408,3274.6,3274.5,3e-06]
[1736948186975,8.04338408,3274.6,3272.1,3.20585475]
[1736948187192,3.05407,3274.4,3272.2,0.03055232]
[1736948187390,8.04338408,3274.6,3272.8,3.05541]
[1736948187588,8.04338408,3274.6,3273.5,3.05474]
[1736948187800,3.80433841,3274.5,3272.4,3.05576]
[1736948188115,3.05426,3274.2,3272.5,0.0305539]
[1736948188308,3.05399,3274.4,3273.2,3.05502]
[1736948188510,1.5825,3275.4,3273.3,0.58054777]
[1736948188685,1.5825,3276.0,3273.6,0.55]
[1736948188885,1.5825,3276.0,3275.2,3.05322]
[1736948189095,1.5825,3276.0,3275.4,3.05306]
[1736948189407,1.5825,3276.0,3274.3,0.03052905]
[1736948189609,1.5825,3276.0,3275.2,3.05324]
[1736948189808,1.5825,3276.0,3273.2,0.305502]
[1736948190114,4.63504,3276.0,3273.5,0.15079833]
[1736948190413,4.63504,3276.0,3273.3,0.03053742]
[1736948190414,3.05273,3275.8,3274.6,3.05379]
[1736948190719,1.5825,3276.0,3275.5,3.05291]
[1736948190877,1.5825,3276.0,3274.7,0.58053526]
[1736948190878,1.5825,3276.0,3275.4,3.05302]
[1736948191073,1.5825,3276.0,3274.7,0.03053526]
[1736948191687,1.5825,3276.0,3274.9,3.05352]
[1736948191997,1.5825,3276.0,3275.0,0.33588096]
[1736948192200,1.5825,3276.0,3275.5,3.05288]
[1736948192382,1.5825,3276.0,3275.0,0.03052896]
[1736948192383,1.5825,3276.0,3275.3,0.03052895]
[1736948192584,1.5825,3276.8,3275.3,0.03052895]
[1736948193121,1.5825,3276.8,3275.4,0.28376282]
[1736948193484,3.05207,3276.5,3275.4,3.33674282]
[1736948193701,0.15825,3276.7,3275.4,0.28376282]
[1736948194014,3.05261,3275.9,3275.4,0.28376282]
[1736948194216,7.63474,3276.3,3275.4,0.28376282]
[1736948194536,1.5825,3276.3,3275.5,3.05296]
[1736948194740,1.5825,3276.3,3275.3,3.05313]
[1736948195028,0.19490127,3276.2,3274.5,0.28376282]
[1736948195423,0.19490127,3276.2,3274.6,0.03053378]
[1736948195610,0.19490127,3276.2,3275.8,3.05261]
[1736948195802,0.19490127,3276.2,3276.1,3.0524]
[1736948195995,1.5857,3277.0,3275.9,3.05252]
[1736948196197,3.05166,3276.9,3275.5,3.05295]
[1736948196494,3.0,3276.7,3274.1,3.0542]
[1736948196698,3.05269,3275.8,3274.7,3.05365]
[1736948196915,6.46088408,3276.2,3274.1,0.58053377]
[1736948197143,1.5857,3276.6,3274.1,0.03053377]
[1736948197359,1.5857,3276.6,3274.2,0.15659338]
[1736948197559,1.5857,3276.6,3275.0,3.05343]
[1736948197699,1.5857,3276.6,3275.2,6.10648]
[1736948197899,1.5857,3276.6,3276.2,3.05226]
[1736948198099,1.5857,3276.6,3275.1,0.03052249]
[1736948198304,1.5857,3276.6,3275.2,0.03052242]
[1736948198501,1.5857,3276.6,3276.5,3.05203]
[1736948198833,1.5857,3276.6,3276.3,3.0522]
[1736948199004,1.5857,3277.4,3275.6,3.05287]
[1736948199342,1.5857,3277.4,3276.4,3.05211]
[1736948199526,0.28383792,3277.3,3276.7,3.05177]
[1736948199731,0.73843305,3276.5,3276.4,3.05213]
[1736948199934,3.05e-06,3276.5,3276.4,6.357343]
[1736948200250,3.05e-06,3276.5,3275.8,3.05261]
[1736948200456,3.05e-06,3276.5,3275.5,3.05296]
[1736948200664,3.05e-06,3276.5,3275.3,0.03052806]
[1736948200811,3.05e-06,3276.5,3276.1,3.0524]
[1736948201135,1.5857,3276.8,3276.6,3.0519]
[1736948201343,1.5857,3276.8,3276.3,3.05217]
[1736948201583,1.5857,3278.0,3276.8,3.05175]
[1736948201704,1.5857,3278.0,3276.0,0.03051872]
[1736948201904,6.46088408,3277.9,3275.6,0.28362663]
[1736948202103,3.05186,3276.7,3275.6,0.28362663]
[1736948202378,0.463756,3276.7,3275.5,3.05296]
[1736948202526,1.5857,3276.8,3275.7,3.05274]
[1736948202869,1.5857,3276.8,3275.7,3.05275]
[1736948203049,1.5857,3276.8,3275.4,3.31491078]
[1736948203216,8.04658408,3276.6,3275.4,0.26189078]
[1736948203424,3.05203,3276.5,3274.7,3.05363]
[1736948203657,1.5857,3275.8,3274.5,3.05381]
[1736948203821,1.5857,3275.8,3274.6,0.03053594]
[1736948204017,1.5857,3275.8,3274.8,3.05358]
[1736948204229,1.5857,3275.8,3273.3,2.69727455]
[1736948204430,3.05401,3274.4,3273.3,1.16187455]
[1736948204654,3.05431,3274.1,3273.3,1.16187455]
[1736948204859,1.5857,3274.0,3273.3,1.16187455]
[1736948205054,4.64015,3274.0,3273.3,1.16187455]
[1736948205220,1.5857,3274.0,3273.3,1.16187455]
[1736948205422,5.17798686,3273.9,3273.3,1.16187455]
[1736948205621,3.05456,3273.8,3273.3,1.16187455]
[1736948205821,3.05455,3273.8,3271.9,2.69727455]
[1736948206030,5.17798686,3273.4,3272.1,3.05607]
[1736948206224,5.17798686,3273.4,3272.0,3.05621]
[1736948206451,1.5857,3273.3,3271.9,1.16187455]
[1736948206650,1.5857,3273.3,3272.1,3.05614]
[1736948206824,1.5857,3274.0,3272.4,1.5354]
[1736948207042,1.5857,3274.0,3272.6,3.05564]
[1736948207236,1.5857,3274.0,3272.7,0.03055034]
[1736948207437,4.63894,3275.3,3273.8,3.05446]
[1736948207675,1.5857,3275.3,3272.9,0.03054309]
[1736948207844,1.5857,3275.3,3273.0,0.03054309]
[1736948208043,1.5857,3275.9,3275.2,3.05324]
[1736948208245,1.5857,3275.9,3274.4,3.05399]
[1736948208429,1.5857,3275.9,3274.5,0.305399]
[1736948208631,1.5857,3275.9,3273.8,0.03052989]
[1736948208833,1.5857,3275.9,3274.9,3.05346]
[1736948209181,1.5857,3275.9,3274.2,0.03053455]
[1736948209379,1.5857,3275.9,3274.3,0.03053345]
[1736948209585,1.5857,3275.9,3274.0,1.16187455]
[1736948209750,1.5857,3275.9,3274.2,3.05416]
[1736948209751,0.15857,3275.8,3274.2,3.05416]
[1736948209948,0.15857,3275.8,3274.6,3.05376]
[1736948210147,1.5857,3275.9,3274.2,3.05411]
[1736948210348,1.5857,3275.9,3275.0,3.05339]
[1736948210641,1.5857,3275.9,3274.8,3.05356]
[1736948210851,3.05297,3275.5,3274.2,3.05418]
[1736948211048,3.05297,3275.5,3273.4,2.3237491]
[1736948211049,1.5857,3275.9,3274.8,3.05359]
[1736948211289,2.049511,3275.9,3274.5,3.05382]
[1736948211599,4.5857,3275.9,3273.3,2.69727455]
[1736948211863,6.4425813,3274.8,3273.3,1.16187455]
[1736948212064,1.6236,3274.1,3273.3,1.16187455]
[1736948212229,1.6236,3274.1,3272.9,4.21717455]
[1736948212433,1.6236,3274.1,3272.9,1.7884258]
[1736948212667,1.6236,3274.1,3272.9,1.16187455]
[1736948212867,3.05513,3273.2,3272.9,1.16187455]
[1736948213032,4.67843,3273.5,3272.9,1.16187455]
[1736948213233,3.05521,3273.1,3271.7,1.16187455]
[1736948213683,1.6236,3273.5,3271.7,1.16187455]
[1736948213844,4.67863,3273.3,3271.7,1.16187455]
[1736948214028,1.6236,3273.3,3271.7,1.16187455]
[1736948214525,1.6236,3273.3,3272.0,3.05615]
[1736948214671,1.6236,3273.3,3270.5,2.67397455]
[1736948214672,3.0558,3272.5,3271.2,3.05691]
[1736948214872,1.6236,3273.3,3270.5,2.67397455]
[1736948215187,1.6236,3272.9,3271.0,3.05713]
[1736948215382,1.6236,3272.9,3270.7,3.05739]
[1736948215583,3.0,3272.9,3270.6,0.44167864]
[1736948215872,3.05605,3272.2,3270.9,3.05719]
[1736948216072,3.05584,3272.5,3271.1,3.057]
[1736948216382,3.05603,3272.3,3270.6,0.44167864]
[1736948216580,1.6236,3272.6,3270.8,3.05735]
[1736948216797,1.6236,3272.6,3270.6,0.44167864]
[1736948217117,1.6236,3272.3,3269.9,3.0581]
[1736948217294,4.6236,3271.7,3269.7,1.16187455]
[1736948217492,1.10661813,3271.6,3270.4,3.05771]
[1736948217706,3.05672,3271.5,3270.1,3.05792]
[1736948217872,1.10661813,3271.6,3269.8,0.03058067]
[1736948218068,6.4425813,3271.2,3268.8,1.16187455]
[1736948218270,6.4425813,3270.6,3268.8,1.16187455]
[1736948218519,1.6236,3269.9,3268.8,1.16187455]
[1736948218828,3.0584,3269.7,3268.8,1.16187455]
[1736948219036,1.6236,3269.9,3268.8,1.16187455]
[1736948219037,1.6236,3269.9,3268.9,3.05905]
[1736948219175,1.6236,3269.9,3268.8,1.192463]
[1736948219492,1.6236,3269.9,3268.9,3.05913]
[1736948219668,1.6236,3269.9,3269.0,0.33650143]
[1736948219868,1.6236,3270.5,3269.8,3.05824]
[1736948220107,1.6236,3270.5,3269.3,3.05874]
[1736948220308,1.6236,3270.5,3268.0,3.02559627]
[1736948220509,3.05782,3270.3,3268.0,3.05988]
[1736948220669,3.05782,3270.3,3267.5,4.5725]
[1736948220670,1.6236,3270.4,3267.5,4.5725]
[1736948220869,1.6236,3270.4,3269.8,3.05828]
[1736948221140,1.6236,3270.4,3269.3,3.05873]
[1736948221421,1.6236,3270.4,3269.4,3.08920277]
[1736948221632,1.6236,3270.4,3268.8,1.5121]
[1736948221862,0.28172845,3270.3,3269.0,3.05897]
[1736948222007,0.28172845,3270.3,3269.4,3.05866]
[1736948222202,0.28172845,3270.3,3269.5,0.03058616]
[1736948222453,0.28172845,3270.3,3270.2,3.05791]
[1736948222801,0.28172845,3270.3,3268.6,1.5121]
[1736948223056,3.0584,3269.7,3268.0,1.5121]
[1736948223264,3.0,3271.3,3267.7,3.06018]
[1736948223265,3.05898,3269.1,3267.8,1.22572]
[1736948223422,1.23965178,3269.6,3267.8,3.06009]
[1736948223760,6.4425813,3269.4,3267.4,1.16187455]
[1736948224054,3.0,3269.3,3266.7,3.0]
[1736948224273,3.0,3269.3,3267.7,3.06024]
[1736948224549,3.0,3269.3,3266.4,1.5121]